Workbook

Sheet R和L BOM清单-10Kpcs
A1: 主板BOM清单
A2: 序号 | B2: 名称 | C2: 型号 | D2: 封装 | E2: 位号 | F2: 用量 | G2: 总用量 | H2: 采购数量 | I2: 备注 | J2: 材料单价 | K2: 材料金额 | L2: 加工点数 | M2: 加工总点数 | N2: 加工单价 | O2: 加工总金额
A3: 1 | B3: 贴片电容 | C3: 0.1uF | D3: 0402C | E3: C1, C7, C9, C12, C14, C15, C17 | F3: 7 | G3: =F3*20000 -> 140000 | I3: 50V | J3: 0.05 | K3: =J3*F3 -> 0.35 | L3: 2 | M3: =L3*F3 -> 14 | N3: 0.008 | O3: =N3*M3 -> 0.112
A4: 2 | B4: 贴片电容 | C4: 10uF | D4: 0402C | E4: C2 | F4: 1 | G4: =F4*20000 -> 20000 | I4: 10V | J4: 0.06 | K4: =J4*F4 -> 0.06 | L4: 2 | M4: =L4*F4 -> 2 | N4: 0.008 | O4: 0.016
A5: 3 | B5: 贴片电容 | C5: 22uF | D5: 0805C | E5: C3, C5, C16, C19 | F5: 4 | G5: 80000 | I5: 25V | J5: 0.14 | K5: 0.56 | L5: 2 | M5: 8 | N5: 0.008 | O5: 0.064
A6: 4 | B6: 贴片电容 | C6: 1uF | D6: 0402C | E6: C4, C18, C24 | F6: 3 | G6: 60000 | I6: 25V | J6: 0.02 | K6: 0.06 | L6: 2 | M6: 6 | N6: 0.008 | O6: 0.048
A7: 5 | B7: 贴片电容 | C7: 2.2uF | D7: 0402C | E7: C6, C20 | F7: 2 | G7: 40000 | I7: 25V | J7: 0.085 | K7: 0.17 | L7: 2 | M7: 4 | N7: 0.008 | O7: 0.032
A8: 6 | B8: 贴片电容 | C8: 12pF | D8: 0402C | E8: C8, C10 | F8: 2 | G8: 40000 | I8: 50V | J8: 0.008 | K8: 0.016 | L8: 2 | M8: 4 | N8: 0.008 | O8: 0.032
A9: 7 | B9: 贴片电容 | C9: 100pF | D9: 0402C | E9: C11 | F9: 1 | G9: 20000 | I9: 50V | J9: 0.007 | K9: 0.007 | L9: 2 | M9: 2 | N9: 0.008 | O9: 0.016
A10: 8 | B10: 贴片电容 | C10: 1.0pF | D10: 0402C | E10: C13 | F10: 1 | G10: 20000 | I10: 50V | J10: 0.008 | K10: 0.008 | L10: 2 | M10: 2 | N10: 0.008 | O10: 0.016
A11: 9 | B11: 贴片二极管 | C11: SS14 | D11: SOD-323 | E11: D1, D3 | F11: 2 | G11: 40000 | J11: 0.041 | K11: 0.082 | L11: 2 | M11: 4 | N11: 0.008 | O11: 0.032
A12: 10 | B12: 贴片电感 | C12: 3.3nH | D12: 0402L | E12: L3 | F12: 1 | G12: 20000 | J12: 0.015 | K12: 0.015 | L12: 2 | M12: 2 | N12: 0.008 | O12: 0.016
A13: 11 | B13: 贴片三极管 | C13: AO3401 | D13: SOT-23-3 | E13: Q1, Q3 | F13: 2 | G13: 40000 | J13: 0.13 | K13: 0.26 | L13: 3 | M13: 6 | N13: 0.008 | O13: 0.048
A14: 12 | B14: 贴片三极管 | C14: AO3400 | D14: SOT-23 | E14: Q2 | F14: 1 | G14: 20000 | J14: 0.13 | K14: 0.13 | L14: 3 | M14: 3 | N14: 0.008 | O14: 0.024
A15: 13 | B15: 贴片电阻 | C15: 3K/1% | D15: 0603RM | E15: R1 | F15: 1 | G15: 20000 | J15: 0.0037 | K15: 0.0037 | L15: 2 | M15: 2 | N15: 0.008 | O15: 0.016
A16: 14 | B16: 贴片电阻 | C16: 200K/1% | D16: 0402R | E16: R2 | F16: 1 | G16: 20000 | J16: 0.0022 | K16: 0.0022 | L16: 2 | M16: 2 | N16: 0.008 | O16: 0.016
A17: 15 | B17: 贴片电阻 | C17: 300K/1% | D17: 0402R | E17: R3 | F17: 1 | G17: 20000 | J17: 0.0022 | K17: 0.0022 | L17: 2 | M17: 2 | N17: 0.008 | O17: 0.016
A18: 16 | B18: 贴片电阻 | C18: 1K | D18: 0402R | E18: R4, R11 | F18: 2 | G18: 40000 | J18: 0.002 | K18: 0.004 | L18: 2 | M18: 4 | N18: 0.008 | O18: 0.032
A19: 17 | B19: 贴片电阻 | C19: 10K | D19: 0402R | E19: R5, R6, R8 | F19: 3 | G19: 60000 | J19: 0.002 | K19: 0.006 | L19: 2 | M19: 6 | N19: 0.008 | O19: 0.048
A20: 18 | B20: 芯片 | C20: TP4056X | D20: SOP-8P | E20: U1 | F20: 1 | G20: 20000 | J20: 0.72 | K20: 0.72 | L20: 8 | M20: 8 | N20: 0.008 | O20: 0.064
A21: 19 | B21: 芯片 | C21: QMA7981 | D21: LGA-12_2*2-e0.25 | E21: U2 | F21: 1 | G21: 20000 | J21: 4.5 | K21: =J21*F21 -> 4.5 | L21: 12 | M21: =L21*F21 -> 12 | N21: 0.008 | O21: =N21*M21 -> 0.096
A22: 20 | B22: 芯片 | C22: NRF52832-QFAA-R | D22: QFN48P-6X6 | E22: U3 | F22: 1 | G22: 20000 | J22: 32 | K22: 32 | L22: 48 | M22: 48 | N22: 0.008 | O22: 0.384
A23: 21 | B23: 芯片 | C23: XC6206P302MR | D23: SOT-23 | E23: U4 | F23: 1 | G23: 20000 | I23: TOREX/特瑞仕 | J23: 0.48 | K23: 0.48 | L23: 3 | M23: 3 | N23: 0.008 | O23: 0.024
A24: 22 | B24: 晶振 | C24: 32MHz/12pF/10PPM | D24: XTAL-SMD-2016 | E24: Y1 | F24: 1 | G24: 20000 | J24: 0.68 | K24: 0.68 | L24: 4 | M24: 4 | N24: 0.008 | O24: 0.032
A25: 23 | B25: PCB板 | C25: FR4 34*25 厚1.0mm 沉金 绿油 | F25: 1 | G25: 20000 | I25: 由贴片厂拼板 | J25: 0.5 | K25: 0.5 | L25: 1 | M25: 1 | N25: 0.2 | O25: 0.2
A26: 24 | B26: 蓝牙天线 | C26: 定制，FR4 43*4 厚0.6mm，3M背胶，2.4G，3dB，馈线线长15cm，焊接 | F26: 1 | G26: 20000 | I26: 我司提供 | J26: 0.8 | K26: 0.8 | L26: 1 | M26: 1 | N26: 0.2 | O26: 0.2 | P26: 东莞市连讯电子有限公司，吴先生，13925895621,https://dglianxun.taobao.com/?spm=2013.1.1000126.d21.16812536XOPYVt
A27: 25 | B27: 4芯连接线 | C27: 定制，单根外径2.5mm，长 7cm，护套剥皮8mm，线芯剥皮2mm上锡，两头焊接 | F27: 1 | G27: 20000 | I27: 我司提供 | J27: 0.28 | K27: 0.28 | L27: 8 | M27: 8 | N27: 0.12 | O27: 0.96 | P27: 两头焊接
A28: 26 | B28: 6芯连接线 | C28: 定制，单根外径3.0mm，长15cm，护套剥皮8mm，线芯剥皮2mm上锡，两头焊接 | F28: 1 | G28: 20000 | I28: 我司提供 | J28: 0.33 | K28: 0.33 | L28: 12 | M28: 12 | N28: 0.12 | O28: 1.44 | P28: 两头焊接
A29: 27 | B29: 振动电机 | C29: 扁平振动电机0827，出线3cm，焊接 | F29: 1 | G29: 20000 | I29: 我司提供 | J29: 1.6 | K29: 1.6 | L29: 2 | M29: 2 | N29: 0.2 | O29: 0.4
A30: 28 | B30: 高温电池 | C30: 高温(耐高温80度)聚合物锂电池602530，真实容量>400mah，出线长1.5cm，电流>1A，焊接 | F30: 1 | G30: 20000 | I30: 我司提供 | J30: 10.1 | K30: 10.1 | L30: 2 | M30: 2 | N30: 0.2 | O30: 0.4
A31: 29 | B31: 外壳 | C31: 定制，40*27*10.8mm | F31: 1 | G31: 20000 | I31: 我司提供 | J31: 0.2 | K31: 0.2 | L31: 1 | M31: 1 | N31: 0.3 | O31: 0.3
A32: 30 | B32: 磁吸充电头 | C32: 定制，4芯连接线，单根外径2.5mm，长 16cm，护套剥皮8mm，线芯剥皮2mm上锡，焊接 | F32: 1 | G32: 20000 | I32: 我司提供 | J32: 4 | K32: 4 | L32: 1 | M32: 5 | N32: 0.12 | O32: 0.6
A33: 31 | B33: 屏蔽罩 | C33: 定制，洋白铜，0.2mm厚度，焊接 | F33: 1 | G33: 20000 | I33: 我司提供 | J33: 2.8 | K33: 2.8 | L33: 3 | M33: 3 | N33: 0.2 | O33: 0.6
K36: =SUM(K3:K35)*1.1 -> 66.79871 | O36: =SUM(O3:O35) -> 6.284
J37: 合计： | K37: =K36+O36 -> 73.08271
H38: 一套合计： | I38: =K37+'前脚 BOM清单-20Kpcs'!M15+'后脚 BOM清单-20Kpcs'!M11 -> 97.94911

Sheet 前脚 BOM清单-20Kpcs
A1: 前脚 BOM
A2: 序号 | B2: 名称 | C2: 型号 | D2: 封装 | E2: 位号 | F2: 用量 | G2: 总用量 | H2: 采购数量 | I2: 单价 | J2: 总金额 | K2: 备注 | L2: 材料单价 | M2: 材料金额 | N2: 加工点数 | O2: 加工总点数 | P2: 加工单价 | Q2: 加工总金额
A3: 1 | B3: 贴片电容 | C3: 1uF | D3: 0402C | E3: C2, C3, C4 | F3: 3 | G3: =F3*20000 -> 60000 | K3: 25V | L3: 0.02 | M3: =L3*F3 -> 0.06 | N3: 2 | O3: =N3*F3 -> 6 | P3: 0.008 | Q3: 0.5
A4: 2 | B4: 贴片电容 | C4: 10uF | D4: 0603C | E4: C5 | F4: 1 | G4: =F4*20000 -> 20000 | K4: 16V | L4: 0.1 | M4: =L4*F4 -> 0.1 | N4: 2 | O4: =N4*F4 -> 2 | P4: 0.008
A5: 2 | B5: 贴片电容 | C5: 0.1uF | D5: 0603C | E5: C6, C7 | F5: 2 | G5: =F5*20000 -> 40000 | K5: 16V | L5: 0.05 | M5: =L5*F5 -> 0.1 | N5: 2 | O5: =N5*F5 -> 4 | P5: 0.008
A6: 3 | B6: 贴片电阻 | C6: 4.7K | D6: 0402R | E6: R1, R2 | F6: 2 | G6: 40000 | L6: 0.002 | M6: 0.004 | N6: 2 | O6: 4 | P6: 0.008
A7: 4 | B7: 芯片 | C7: LSM6DS3TR-C | D7: LGA-14_2.5*3-e0.5 | E7: U1 | F7: 1 | G7: 20000 | L7: 10.8 | M7: 10.8 | N7: 14 | O7: 14 | P7: 0.008
A8: 5 | B8: 芯片 | C8: QMC6310U | D8: LGA-8_1.2*1.2-E0.4 | E8: U2 | F8: 1 | G8: 20000 | L8: 1.75 | M8: 1.75 | N8: 8 | O8: 8 | P8: 0.008
A9: 6 | B9: PCB板 | C9: FR4 14*13 厚1.0mm 沉金 绿油 | F9: 1 | G9: 20000 | L9: 0.26 | M9: 0.26 | N9: 1 | O9: 1 | P9: 0.1 | Q9: =P9*O9 -> 0.1
A10: 7 | B10: 外壳 | C10: 直径2cm，厚度3mm，带6芯线(OD3.0mm) | F10: 1 | G10: 20000 | K10: 我司提供 | L10: 0.2 | M10: 0.2
A11: 8 | B11: 磁铁 | C11: 直径1cm，厚度1mm，高温磁铁 | F11: 2 | G11: 40000 | K11: 我司提供 | L11: 0.7 | M11: 1.4 | N11: 1 | O11: 1 | P11: 0.2 | Q11: 0.2
A12: 9 | B12: 铁片 | C12: 直径2cm，厚度 0.3mm，带背胶 | F12: 2 | G12: 40000 | K12: 我司提供 | L12: 0.5 | M12: 1 | N12: 1 | O12: 2 | P12: 0.2 | Q12: 0.4
M14: =SUM(M3:M13)*1.1 -> 17.2414 | Q14: =SUM(Q3:Q13) -> 1.2
L15: 合计： | M15: =M14+Q14 -> 18.4414

Sheet 后脚 BOM清单-20Kpcs
A1: 后脚 BOM
A2: 序号 | B2: 名称 | C2: 型号 | D2: 封装 | E2: 位号 | F2: 用量 | G2: 总用量 | H2: 采购数量 | I2: 单价 | J2: 总金额 | K2: 备注 | L2: 材料单价 | M2: 材料金额 | N2: 加工点数 | O2: 加工总点数 | P2: 加工单价 | Q2: 加工总金额
A3: 1 | B3: 贴片电容 | C3: 1uF | D3: 0402C | E3: C3, C4 | F3: 2 | G3: =F3*20000 -> 40000 | K3: 25V | L3: 0.02 | M3: =L3*F3 -> 0.04 | N3: 2 | O3: =N3*F3 -> 4 | P3: 0.008 | Q3: 0.5
A4: 2 | B4: 贴片电容 | C4: 10uF | D4: 0603C | E4: C5 | F4: 1 | G4: =F4*20000 -> 20000 | K4: 16V | L4: 0.1 | M4: =L4*F4 -> 0.1 | N4: 2 | O4: =N4*F4 -> 2 | P4: 0.008
A5: 3 | B5: 芯片 | C5: QMC6310U | D5: LGA-8_1.2*1.2-E0.4 | E5: U2 | F5: 1 | G5: 20000 | L5: 1.75 | M5: 1.75 | N5: 8 | O5: 8 | P5: 0.008
A6: 4 | B6: PCB板 | C6: FR4 14*13 厚1.0mm 沉金 绿油 | F6: 1 | G6: 20000 | L6: 0.26 | M6: 0.26 | N6: 1 | O6: 1 | P6: 0.1 | Q6: =P6*O6 -> 0.1
A7: 5 | B7: 外壳 | C7: 直径2cm，厚度3mm，带4芯线(OD2.5mm) | F7: 1 | G7: 20000 | J7: 我司提供 | L7: 0.2 | M7: 0.2
A8: 6 | B8: 磁铁 | C8: 直径1cm，厚度1mm，高温磁铁 | F8: 2 | G8: 40000 | J8: 我司提供 | L8: 0.7 | M8: 1.4 | N8: 1 | O8: 1 | P8: 0.2 | Q8: 0.2
A9: 7 | B9: 铁片 | C9: 直径2cm，厚度 0.3mm，带背胶 | F9: 2 | G9: 40000 | J9: 我司提供 | L9: 0.5 | M9: 1 | N9: 1 | O9: 2 | P9: 0.2 | Q9: 0.4
M10: =SUM(M3:M9)*1.1 -> 5.225 | Q10: =SUM(Q3:Q9) -> 1.2
L11: 合计： | M11: =M10+Q10 -> 6.425

Sheet 加工
A1: 加工
A2: 序号 | B2: 名称 | C2: 型号 | D2: 封装 | E2: 位号 | F2: 用量 | G2: 总用量 | H2: 采购数量 | I2: 单价 | J2: 总金额
A3: 1 | B3: SMT加工 | C3: 包括钢网 | F3: 1 | I3: 220 | J3: =I3*F3 -> 220
A4: 2 | B4: 测试工装 | F4: 1 | I4: 1500 | J4: =I4*F4 -> 1500
A5: 3 | B5: 脱机烧录器 | F5: 1 | I5: 3750 | J5: 3750
A6: 4 | B6: 手工焊接 | F6: 1 | I6: 8.74 | J6: 8.74
A7: 5 | B7: 灌胶 | F7: 1 | I7: 2 | J7: 2
A8: 6 | B8: 生产检测充电线 | F8: 1 | J8: 0
A9: 7 | B9: 外壳模具费 | F9: 1 | I9: 19000 | J9: 19000
A10: 8 | B10: 代料费用 | F10: 1 | I10: 74.31 | J10: =I10*F10 -> 74.31 | K10: 这是什么费用?
J11: =SUM(J3:J10) -> 24555.05
